fUSD/lending_fUSD_20260319
["ID","MTS","AMOUNT","RATE_DAILY","PERIOD"]
[408600814,1773924633624,-235.752413,9.31e-05,2]
[408600815,1773924633634,-208.82351,9.31e-05,2]
[408600816,1773924633644,-311.504827,9.31e-05,2]
[408600817,1773924633653,-160.0,9.31e-05,2]
[408600818,1773924633663,-233.165249,9.31e-05,2]
[408600819,1773924633673,-283.72416802,9.31e-05,2]
[408600820,1773924633685,-22.60633098,9.31e-05,2]
[408600821,1773924633695,-276.27433,9.31e-05,2]
[408600822,1773924633704,-234.92645,9.31e-05,2]
[408600823,1773924633713,-378.205565,9.31e-05,2]
[408600824,1773924633723,-500.0,9.315e-05,2]
[408600825,1773924633732,-1000.0,9.38e-05,2]
[408600826,1773924633742,-151.0,9.397e-05,2]
[408600827,1773924633752,-150.0,9.427e-05,2]
[408600828,1773924633761,-150.0,9.432e-05,2]
[408600829,1773924633771,-1000.0,9.443e-05,2]
[408600830,1773924633782,-306.59,9.447e-05,2]
[408600831,1773924633791,-1000.0,9.451e-05,2]
[408600832,1773924633801,-1000.0,9.469e-05,2]
[408600833,1773924633810,-151.0,9.497e-05,2]
[408600834,1773924633820,-151.0,9.497e-05,2]
[408600835,1773924633831,-346335.15128864,9.5e-05,3]
[408600836,1773924633843,-1254.41808677,9.5e-05,3]
[408600837,1773924635047,-457.4821862,9.5e-05,3]
[408600838,1773924635072,-1073.75,9.5e-05,3]
[408600840,1773924637817,-188.527086,9.31e-05,2]
[408600841,1773924637828,-94255.61040125,9.5e-05,3]
[408600843,1773924637880,-1916.95023413,9.5e-05,3]
[408600844,1773924637892,-1154.38291172,9.5e-05,3]
[408600845,1773924637905,-1531.72045258,9.5e-05,3]
[408600846,1773924637917,-2446.94433431,9.5e-05,3]
[408600847,1773924637928,-21405.68466751,9.5e-05,3]
[408600848,1773924638056,-2405.11759074,9.5e-05,3]
[408600849,1773924638114,-387.75502244,9.5e-05,3]
[408600850,1773924638229,-78967.4326844,9.5e-05,3]
[408600851,1773924638242,-1064.40417485,9.5e-05,3]
[408600872,1773924640084,-480.02181533,9.5e-05,3]
[408600880,1773924643233,-5000.0,8.238e-05,2]
[408600881,1773924643242,-1883.84346178,9.041e-05,2]
[408600883,1773924643259,-2377.97553642,9.041e-05,2]
[408600884,1773924643274,-722.8955016,9.041e-05,2]
[408600885,1773924643286,-15.2855002,9.041e-05,2]
[408600886,1773924643296,-7013.57597679,9.5e-05,3]
[408600887,1773924643305,-1204.1,9.5e-05,2]
[408600889,1773924643315,-150.0,9.511e-05,2]
[408600890,1773924643325,-2357.70538484,9.511e-05,2]
[408600891,1773924643334,-153.10400719,9.511e-05,2]
[408600892,1773924643344,-150.0,9.541e-05,2]
[408600893,1773924643354,-150.0,9.557e-05,2]
[408600894,1773924643363,-350.0,9.583e-05,2]
[408600895,1773924643373,-473.0935161,9.589e-05,2]
[408600896,1773924643382,-350.0,9.593e-05,2]
[408600897,1773924643392,-1600.0,9.611e-05,2]
[408600898,1773924643402,-150.0,9.622e-05,2]
[408600899,1773924643412,-169.51,9.657e-05,2]
[408600900,1773924643422,-627.184,9.675e-05,2]
[408600901,1773924643432,-1350.033,9.675e-05,2]
[408600902,1773924643441,-3512.0,9.675e-05,2]
[408600903,1773924643451,-1044.0,9.675e-05,2]
[408600904,1773924643461,-150.369,9.675e-05,2]
[408600905,1773924643471,-216.0,9.675e-05,2]
[408600906,1773924643480,-3758.0,9.675e-05,2]
[408600907,1773924643490,-414.915,9.675e-05,2]
[408600908,1773924643501,-2465.0,9.675e-05,2]
[408600910,1773924643510,-350.0,9.691e-05,2]
[408600912,1773924643519,-974.43830873,9.714e-05,2]
[408600914,1773924643529,-2500.0,9.714e-05,2]
[408600916,1773924643539,-2500.0,9.714e-05,2]
[408600918,1773924643548,-2500.0,9.714e-05,2]
[408600920,1773924643558,-500.0,9.726e-05,2]
[408600922,1773924643567,-350.0,9.767e-05,2]
[408600924,1773924643576,-1204.1,9.774e-05,2]
[408600926,1773924643586,-252.14419236,9.8e-05,2]
[408600928,1773924643595,-350.0,9.848e-05,2]
[408600930,1773924643604,-10000.0,9.9e-05,2]
[408600932,1773924643615,-1922.29558694,9.934e-05,2]
[408600934,1773924643625,-350.0,9.937e-05,2]
[408600936,1773924643635,-306.59,9.945e-05,2]
[408600938,1773924643646,-151.0,9.997e-05,2]
[408600940,1773924643655,-160.696,9.999e-05,2]
[408600942,1773924643665,-155.0,9.999e-05,2]
[408600944,1773924643675,-155.0,9.999e-05,2]
[408600946,1773924643684,-54758.24905836,0.0001,2]
[408600949,1773924643708,-266.69501648,8.265e-05,2]
[408600950,1773924643741,-19.795539,8.265e-05,2]
[408600957,1773924645644,-4713.50944452,8.265e-05,2]
[408600958,1773924645654,-1577.71604166,8.265e-05,2]
[408600959,1773924645666,-279.76617371,8.265e-05,2]
[408600960,1773924645676,-42166.90632929,0.0001,2]
[408600961,1773924646090,-309.208988,9.31e-05,2]
[408600962,1773924646101,-3832.42821706,0.0001,2]
[408600967,1773924809500,166.66,7.062e-05,2]
[408600968,1773924809711,166.66,7.295e-05,2]
[408600969,1773925170672,241.11690104,7.512e-05,2]
[408600970,1773925210210,300.0,7.522e-05,2]
[408600975,1773925261347,300.0,7.522e-05,2]
[408600976,1773925321288,300.0,7.522e-05,2]
[408600977,1773925381275,300.0,7.522e-05,2]
[408600978,1773925382928,150.0,7.522e-05,2]
[408600979,1773925392657,300.0,7.522e-05,2]
[408600982,1773925441256,300.0,7.522e-05,2]
[408600983,1773925501143,1200.0,7.522e-05,2]
[408600984,1773925501173,300.0,7.522e-05,2]
[408600985,1773925501272,300.0,7.522e-05,2]
[408600986,1773925561292,300.0,7.522e-05,2]
[408600987,1773925562849,150.0,7.522e-05,2]
[408600988,1773925567151,120080.0,0.00016333,120]
[408600989,1773925568825,300.0,7.522e-05,2]
[408600990,1773925586886,170.68,6.233e-05,2]
[408600991,1773925587112,170.68,7.272e-05,2]
[408600992,1773925601416,210.7,7.491e-05,2]
[408600993,1773925654069,1500.0,7.505e-05,2]
[408600994,1773925681874,300.0,7.522e-05,2]
[408600995,1773925741125,-500.0,7.523e-05,2]
[408600996,1773925741152,-500.0,7.523e-05,2]
[408600997,1773925741188,-500.0,7.523e-05,2]
[408600998,1773925741219,-500.0,7.523e-05,2]
[408600999,1773925741247,-500.0,7.523e-05,2]
[408601000,1773925741268,-500.0,7.523e-05,2]
[408601001,1773925741280,-500.0,7.523e-05,2]
[408601002,1773925741291,-500.0,7.523e-05,2]
[408601003,1773925741303,-213.19819377,7.523e-05,2]
[408601004,1773925741313,-250.0,7.523e-05,2]
[408601005,1773925741322,-36.80180623,7.523e-05,2]
[408601006,1773925741338,-177.19819377,7.523e-05,2]
[408601007,1773925741347,-166.66,7.529e-05,2]
[408601008,1773925741357,-156.14180623,7.534e-05,2]
[408601009,1773925741372,-0.01,7.534e-05,2]
[408601010,1773925741404,-93.84819377,7.534e-05,2]
[408601011,1773925741432,-166.66,7.762e-05,2]
[408601012,1773925741466,-1175.63361246,7.792e-05,2]
[408601013,1773925741479,-93.84819377,7.792e-05,2]
[408601014,1773925741492,-166.66,7.792e-05,2]
[408601015,1773925741503,-1867.21819377,7.792e-05,2]
[408601016,1773925741513,-1436.14180623,7.792e-05,2]
[408601017,1773925744024,-150.0,7.791e-05,2]
[408601018,1773925744051,-776.30180623,7.792e-05,2]
[408601019,1773925744066,-150.0,7.792e-05,2]
[408601020,1773925744078,-2997.40638754,7.792e-05,2]
[408601021,1773925760937,500.0,7.526e-05,2]
[408601022,1773925774135,-166.66,7.995e-05,2]
[408601023,1773925774158,-52.5167966,8.086e-05,2]
[408601037,1773925831921,-197.4832034,8.086e-05,2]
[408601039,1773925831933,-218.0,8.086e-05,2]
[408601041,1773925831944,-300.0,8.176e-05,2]
[408601043,1773925831954,-622.48196587,8.176e-05,2]
[408601046,1773925831966,-577.51803413,8.176e-05,2]
[408601048,1773925831986,-350.86,8.177e-05,2]
[408601050,1773925832010,-652.79492915,8.177e-05,2]
[408601052,1773925832030,-347.19507085,8.177e-05,2]
[408601053,1773925832043,-388.67361812,8.177e-05,2]
[408601056,1773925832063,-9611.31638188,8.177e-05,2]
[408601058,1773925832074,-150.99,8.177e-05,2]
[408601060,1773925832083,-2330.01,8.178e-05,2]
[408601061,1773925832093,-4999.99,8.178e-05,2]
[408601062,1773925832104,-3804.48,8.178e-05,2]
[408601063,1773925832113,-299.99,8.178e-05,2]
[408601065,1773925832123,-352.8,8.178e-05,2]
[408601067,1773925832133,-9999.99,8.178e-05,2]
[408601069,1773925832142,-150.99,8.178e-05,2]
[408601071,1773925832152,-788.74,8.219e-05,2]
[408601072,1773925832163,-166.66,8.228e-05,2]
[408601073,1773925832173,-981.53039129,8.261e-05,2]
[408601074,1773925832182,-6500.0,8.264e-05,2]
[408601076,1773925832192,-250.0,8.275e-05,2]
[408601078,1773925832201,-1581.0,8.284e-05,2]
[408601080,1773925832211,-1581.0,8.284e-05,2]
[408601081,1773925832221,-1581.0,8.284e-05,2]
[408601083,1773925832230,-1581.0,8.284e-05,2]
[408601085,1773925832239,-1581.0,8.284e-05,2]
[408601087,1773925832248,-1581.0,8.284e-05,2]
[408601089,1773925832258,-1581.0,8.284e-05,2]
[408601092,1773925832268,-1581.0,8.284e-05,2]
[408601096,1773925832277,-1581.0,8.284e-05,2]
[408601099,1773925832288,-1581.0,8.284e-05,2]
[408601101,1773925832297,-1581.0,8.284e-05,2]
[408601104,1773925832307,-1581.0,8.284e-05,2]
[408601107,1773925832316,-1581.0,8.284e-05,2]
[408601110,1773925832325,-1581.0,8.284e-05,2]
[408601112,1773925832334,-1581.0,8.284e-05,2]
[408601114,1773925832343,-1581.0,8.284e-05,2]
[408601116,1773925832353,-1581.0,8.284e-05,2]
[408601118,1773925832362,-1581.0,8.284e-05,2]
[408601120,1773925832372,-1581.0,8.284e-05,2]
[408601122,1773925832381,-1581.0,8.284e-05,2]
[408601123,1773925832390,-1581.0,8.284e-05,2]
[408601124,1773925832400,-1581.0,8.284e-05,2]
[408601125,1773925832410,-1581.0,8.284e-05,2]
[408601126,1773925832419,-1588.9872432,8.284e-05,2]
[408601127,1773925832428,-170.68,8.311e-05,2]
[408601128,1773925832439,-150.0,8.336e-05,2]
[408601129,1773925832448,-150.0,8.418e-05,2]
[408601130,1773925832458,-52226.87580371,8.469e-05,2]
[408601131,1773925832467,-500.0,8.477e-05,2]
[408601132,1773925832479,-574.42695522,8.477e-05,2]
[408601133,1773925832489,-500.0,8.477e-05,2]
[408601134,1773925832499,-504.8346845,8.477e-05,2]
[408601135,1773925832509,-391.19164398,8.493e-05,2]
[408601136,1773925832520,-500.0,8.493e-05,2]
[408601137,1773925832531,-500.0,8.493e-05,2]
[408601138,1773925832541,-1280.88388878,8.493e-05,2]
[408601139,1773925832551,-500.0,8.493e-05,2]
[408601140,1773925832561,-197.82587578,8.493e-05,2]
[408601141,1773925832570,-8565.75555911,8.493e-05,2]
[408601142,1773925832579,-516.7072934,8.493e-05,2]
[408601143,1773925832589,-500.0,8.493e-05,2]
[408601144,1773925832599,-500.0,8.493e-05,2]
[408601145,1773925832609,-500.0,8.493e-05,2]
[408601146,1773925832619,-500.0,8.493e-05,2]
[408601147,1773925832628,-500.0,8.493e-05,2]
[408601148,1773925832638,-500.0,8.493e-05,2]
[408601149,1773925832647,-500.0,8.493e-05,2]
[408601150,1773925832658,-500.0,8.493e-05,2]
[408601151,1773925832668,-500.0,8.493e-05,2]
[408601152,1773925832677,-250.0,8.493e-05,2]
[408601153,1773925832686,-500.0,8.493e-05,2]
[408601154,1773925832696,-250.0,8.493e-05,2]
[408601155,1773925832705,-500.0,8.493e-05,2]
[408601156,1773925832714,-250.0,8.493e-05,2]
[408601157,1773925832723,-272.53822437,8.493e-05,2]
[408601158,1773925832732,-500.0,8.493e-05,2]
[408601159,1773925832741,-250.0,8.493e-05,2]
[408601160,1773925832751,-500.0,8.493e-05,2]
[408601161,1773925832760,-282.59450799,8.493e-05,2]
[408601162,1773925832770,-500.0,8.493e-05,2]
[408601163,1773925832779,-203.45251981,8.493e-05,2]
[408601164,1773925832788,-151.0,8.493e-05,2]
[408601165,1773925832797,-151.0,8.493e-05,2]
[408601166,1773925832807,-669.13395939,8.493e-05,2]
[408601167,1773925832816,-151.0,8.493e-05,2]
[408601168,1773925832825,-151.0,8.493e-05,2]
[408601169,1773925832834,-151.0,8.493e-05,2]
[408601170,1773925832843,-151.0,8.493e-05,2]
[408601171,1773925832852,-151.0,8.493e-05,2]
[408601172,1773925832861,-151.0,8.493e-05,2]
[408601173,1773925832870,-225.91421318,8.493e-05,2]
[408601174,1773925832880,-500.0,8.498e-05,2]
[408601175,1773925832888,-500.0,8.548e-05,2]
[408601176,1773925832898,-8882.6885148,8.548e-05,2]
[408601177,1773925832908,-151.0,8.548e-05,2]
[408601178,1773925832917,-502.25774111,8.551e-05,2]
[408601179,1773925832926,-500.0,8.551e-05,2]
[408601180,1773925832935,-500.0,8.551e-05,2]
[408601181,1773925832944,-500.0,8.551e-05,2]
[408601182,1773925832954,-333.74740353,8.551e-05,2]
[408601183,1773925832965,-255.0,8.57e-05,2]
[408601184,1773925832975,-500.0,8.603e-05,2]
[408601185,1773925832984,-9211.34798985,8.603e-05,2]
[408601186,1773925832993,-151.0,8.603e-05,2]
[408601187,1773925833003,-264.44862571,8.621e-05,2]
[408601188,1773925833012,-80378.45041014,8.622e-05,2]
[408601189,1773925833021,-22675.89,8.63e-05,2]
[408601190,1773925833030,-500.0,8.658e-05,2]
[408601191,1773925833040,-9552.16786547,8.658e-05,2]
[408601192,1773925833050,-151.0,8.658e-05,2]
[408601193,1773925833059,-500.0,8.713e-05,2]
[408601194,1773925833068,-9905.5980765,8.713e-05,2]
[408601195,1773925833078,-151.0,8.713e-05,2]
[408601196,1773925833087,-4985.49851836,8.72e-05,2]
[408601197,1773925833100,-3472.71518217,8.72e-05,2]
[408601198,1773925833112,-1068.15,8.72e-05,2]
[408601199,1773925833125,-664.78715422,8.72e-05,2]
[408601200,1773925833144,-856.65432573,8.72e-05,2]
[408601201,1773925833161,-921.71985383,8.72e-05,2]
[408601202,1773925833173,-579.76289887,8.72e-05,2]
[408601203,1773925833192,-2436.47563588,8.72e-05,2]
[408601204,1773925833204,-749.6440699,8.72e-05,2]
[408601208,1773925837874,-935.75564493,8.521e-05,2]
[408601209,1773925837929,-815.91901641,8.521e-05,2]
[408601210,1773925837940,-748.32533866,8.521e-05,2]
[408601211,1773925837949,-451.11893016,8.72e-05,2]
[408601212,1773925837987,-425.34378255,8.72e-05,2]
[408601213,1773925837998,-3634.26229475,8.72e-05,2]
[408601214,1773925838009,-1763.18933559,8.72e-05,2]
[408601215,1773925838020,-2897.71014754,8.72e-05,2]
[408601216,1773925838032,-1029.12371612,8.72e-05,2]
[408601217,1773925838044,-1719.53137735,8.72e-05,2]
[408601218,1773925838055,-27042.46809033,8.72e-05,2]
[408601219,1773925838067,-6034.16891772,8.72e-05,2]
[408601220,1773925838078,-1364.2629872,8.72e-05,2]
[408601221,1773925838106,-5523.9094604,8.72e-05,2]
[408601222,1773925838158,-11979.75265951,8.72e-05,2]
[408601225,1773925840114,-584.45210113,8.72e-05,2]
[408601226,1773925840173,-927.72246148,8.72e-05,2]
[408601227,1773925840184,-6924.4,8.72e-05,2]
[408601228,1773925840196,-681.07196425,8.72e-05,2]
[408601229,1773925840205,-8737.68820798,8.731e-05,2]
[408601230,1773925840216,-8775.72779202,8.731e-05,2]
[408601231,1773925840226,-500.0,8.751e-05,2]
[408601232,1773925840235,-500.0,8.768e-05,2]
[408601233,1773925840245,-10272.10520533,8.768e-05,2]
[408601234,1773925840254,-151.0,8.768e-05,2]
[408601235,1773925840263,-33938.20455432,8.792e-05,2]
[408601236,1773925840272,-250.0,8.794e-05,2]
[408601237,1773925840281,-5000.0,8.794e-05,2]
[408601238,1773925840291,-4734.97097952,8.794e-05,2]
[408601239,1773925840300,-500.0,8.823e-05,2]
[408601240,1773925840309,-10705.96975569,8.823e-05,2]
[408601241,1773925840318,-562.34804496,8.878e-05,2]
[408601242,1773925840327,-7807.84563715,8.974e-05,2]
[408601243,1773925840626,-19403.20436285,8.974e-05,2]
[408601244,1773925840636,-1680.0,8.994e-05,2]
[408601245,1773925840645,-502.21245026,9.025e-05,2]
[408601246,1773925840654,-1052.04964118,9.046e-05,2]
[408601247,1773925840664,-586.42594914,9.099e-05,2]
[408601251,1773925840882,-500.0,9.099e-05,2]
[408601252,1773925840892,-1000.0,9.099e-05,2]
[408601253,1773925840902,-417.07,9.2e-05,2]
[408601254,1773925840911,-169.11,9.231e-05,2]
[408601255,1773925840921,-170.68,9.35e-05,2]
[408601256,1773925840932,-433.0,9.427e-05,2]
[408601257,1773925840941,-1044.0,9.435e-05,2]
[408601258,1773925840950,-620.0,9.435e-05,2]
[408601259,1773925840959,-150.0,9.435e-05,2]
[408601260,1773925840969,-924.0,9.435e-05,2]
[408601261,1773925840978,-1215.0,9.435e-05,2]
[408601262,1773925840987,-2465.0,9.492e-05,2]
[408601263,1773925840997,-6006.0,9.492e-05,2]
[408601264,1773925841006,-1228.32,9.519e-05,2]
[408601265,1773925841016,-200.0,9.6e-05,3]
[408601266,1773925841025,-500.0,9.644e-05,2]
[408601267,1773925841035,-504.93522769,9.647e-05,2]
[408601268,1773925841044,-400.0,9.7e-05,3]
[408601269,1773925841053,-500.0,9.703e-05,2]
[408601270,1773925841062,-502.94227375,9.703e-05,2]
[408601271,1773925841071,-500.0,9.703e-05,2]
[408601272,1773925841080,-155.0,9.724e-05,2]
[408601273,1773925841094,-3187.0,9.728e-05,5]
[408601274,1773925841103,-92455.56844204,9.728e-05,2]
[408601275,1773925841114,-737.73040435,9.728e-05,2]
[408601279,1773925842937,-974.74442038,9.492e-05,2]
[408601280,1773925842991,-868.52587262,9.492e-05,2]
[408601281,1773925843153,-1914.729707,9.492e-05,2]
[408601282,1773925843163,-8645.80189495,9.728e-05,2]
[408601283,1773925843176,-56352.72269881,9.728e-05,2]
[408601284,1773925843188,-785584.43883906,9.728e-05,2]
[408601285,1773925843210,-314.33202855,9.728e-05,2]
[408601286,1773925843221,-303.25529,9.728e-05,2]
[408601287,1773925843266,-7470.05577332,9.728e-05,2]
[408601288,1773925843323,-7293.62152766,9.728e-05,2]
[408601289,1773925843334,-490.89410121,9.728e-05,2]
[408601290,1773925843346,-4412.62428,9.728e-05,2]
[408601305,1773925845826,-11783.7123,9.728e-05,2]
[408601306,1773925846014,-12886.81812496,9.728e-05,2]
[408601307,1773925846027,-48473.90000002,9.728e-05,2]
[408601308,1773925846043,-60140.00454688,9.728e-05,2]
[408601309,1773925846175,-1390.0,9.728e-05,2]
[408601310,1773925846188,-820.73310143,9.728e-05,2]
[408601318,1773925941522,2864.48,7.792e-05,2]
[408601319,1773926091847,7135.53,8.078e-05,2]
[408601320,1773926091869,10000.01,8.078e-05,2]
[408601321,1773926091904,10000.01,8.078e-05,2]
[408601322,1773926091929,10000.01,8.078e-05,2]
[408601323,1773926091953,10000.01,8.078e-05,2]
[408601324,1773926091977,10000.01,8.078e-05,2]
[408601325,1773926092001,10000.01,8.078e-05,2]
[408601326,1773926092024,10000.01,8.078e-05,2]
[408601327,1773926092048,10000.01,8.078e-05,2]
[408601328,1773926092072,10000.01,8.078e-05,2]
[408601329,1773926099210,-8573.51309896,8.078e-05,2]
[408601330,1773926099537,-10000.01,8.078e-05,2]
[408601331,1773926099688,-10000.01,8.078e-05,2]
[408601332,1773926099796,-10000.01,8.078e-05,2]
[408601333,1773926099963,-10000.01,8.078e-05,2]
[408601334,1773926100082,-10000.01,8.078e-05,2]
[408601335,1773926100211,-10000.01,8.078e-05,2]
[408601336,1773926100377,-10000.01,8.078e-05,2]
[408601337,1773926102249,-300.0,8.077e-05,2]
[408601338,1773926102278,-1200.0,8.077e-05,2]
[408601339,1773926102326,-7000.01,8.078e-05,2]
[408601340,1773926105201,-150.0,8.077e-05,2]
[408601341,1773926105235,-9700.01,8.078e-05,2]
[408601342,1773926105342,-10000.01,8.078e-05,2]
[408601343,1773926105440,-10000.01,8.078e-05,2]
[408601344,1773926105566,-10000.01,8.078e-05,2]
[408601345,1773926105675,-10000.01,8.078e-05,2]
[408601346,1773926105783,-10000.01,8.078e-05,2]
[408601347,1773926105896,-10000.01,8.078e-05,2]
[408601348,1773926106014,-10000.01,8.078e-05,2]
[408601349,1773926169171,-300.0,8.077e-05,2]
[408601350,1773926171792,1909.77,0.00016333,120]
[408601351,1773926199642,-530.63007608,8.077e-05,2]
[408601352,1773926199677,-500.0,8.077e-05,2]
[408601353,1773926199711,-500.0,8.077e-05,2]
[408601354,1773926199747,-500.0,8.077e-05,2]
[408601355,1773926199781,-500.0,8.077e-05,2]
[408601356,1773926199814,-500.0,8.077e-05,2]
[408601357,1773926199847,-500.0,8.077e-05,2]
[408601358,1773926199879,-500.0,8.077e-05,2]
[408601359,1773926199912,-500.0,8.077e-05,2]
[408601360,1773926199945,-438.74984784,8.077e-05,2]
[408601361,1773926200064,-61.25015216,8.077e-05,2]
[408601362,1773926200098,-500.0,8.077e-05,2]
[408601363,1773926200130,-500.0,8.077e-05,2]
[408601364,1773926200162,-500.0,8.077e-05,2]
[408601365,1773926200196,-500.0,8.077e-05,2]
[408601366,1773926200230,-500.0,8.077e-05,2]
[408601367,1773926200262,-500.0,8.077e-05,2]
[408601368,1773926200294,-500.0,8.077e-05,2]
[408601369,1773926200329,-500.0,8.077e-05,2]
[408601370,1773926200362,-500.0,8.077e-05,2]
[408601371,1773926200395,-377.50969568,8.077e-05,2]
[408601372,1773926200669,-122.49030432,8.077e-05,2]
[408601373,1773926200678,-61.25015216,8.077e-05,2]
[408601374,1773926202475,-438.74984784,8.077e-05,2]
[408601375,1773926202511,-500.0,8.077e-05,2]
[408601376,1773926202544,-500.0,8.077e-05,2]
[408601377,1773926202579,-500.0,8.077e-05,2]
[408601378,1773926202615,-500.0,8.077e-05,2]
[408601379,1773926202649,-500.0,8.077e-05,2]
[408601380,1773926202682,-500.0,8.077e-05,2]
[408601381,1773926202714,-500.0,8.077e-05,2]
[408601382,1773926202748,-500.0,8.077e-05,2]
[408601383,1773926202780,-500.0,8.077e-05,2]
[408601384,1773926202943,-122.51030432,8.077e-05,2]
[408601385,1773926205737,-377.48969568,8.077e-05,2]
[408601386,1773926205770,-500.0,8.077e-05,2]
[408601387,1773926205803,-500.0,8.077e-05,2]
[408601388,1773926205836,-500.0,8.077e-05,2]
[408601389,1773926205869,-500.0,8.077e-05,2]
[408601390,1773926205901,-593.57899433,8.077e-05,2]
[408601391,1773926205934,-500.0,8.077e-05,2]
[408601392,1773926205969,-500.0,8.077e-05,2]
[408601393,1773926206002,-500.0,8.077e-05,2]
[408601394,1773926206036,-500.0,8.077e-05,2]
[408601395,1773926206203,-57.87261998,8.077e-05,2]
[408601396,1773926206398,-442.12738002,8.077e-05,2]
[408601397,1773926206430,-500.0,8.077e-05,2]
[408601398,1773926206463,-500.0,8.077e-05,2]
[408601399,1773926206497,-500.0,8.077e-05,2]
[408601400,1773926206530,-500.0,8.077e-05,2]
[408601401,1773926206564,-500.0,8.077e-05,2]
[408601402,1773926206605,-500.0,8.077e-05,2]
[408601403,1773926206638,-500.0,8.077e-05,2]
[408601404,1773926362861,-10000.01,8.068e-05,2]
[408601405,1773926368561,-10000.01,8.068e-05,2]
[408601406,1773926368862,-10000.01,8.068e-05,2]
[408601407,1773926368976,-10000.01,8.068e-05,2]
[408601408,1773926374688,-10000.01,8.068e-05,2]
[408601409,1773926374790,-10000.01,8.068e-05,2]
[408601410,1773926374925,-10000.01,8.068e-05,2]
[408601411,1773926375042,-10000.01,8.068e-05,2]
[408601412,1773926818665,200.0,7.767e-05,2]
[408601414,1773926922426,635.65,0.00012575,10]
[408601420,1773927032052,-217.0,7.974e-05,2]
[408601421,1773927032062,-500.0,7.974e-05,2]
[408601423,1773927032072,-250.0,7.976e-05,2]
[408601425,1773927032081,-300.0,7.977e-05,2]
[408601427,1773927032091,-1200.0,7.977e-05,2]
[408601429,1773927032100,-300.0,7.977e-05,2]
[408601431,1773927032111,-43200.05,7.978e-05,2]
[408601432,1773927032121,-250.0,8.01e-05,2]
[408601433,1773927032130,-150.0,8.041e-05,2]
[408601434,1773927032140,-21098.54949995,8.042e-05,2]
[408601435,1773927032149,-3567.2,8.052e-05,2]
[408601436,1773927032159,-3609.418151,8.07e-05,2]
[408601437,1773927032168,-752.56,8.077e-05,2]
[408601438,1773927032177,-73876.77995786,8.078e-05,2]
[408601439,1773927032196,-21476.89567157,8.078e-05,2]
[408601440,1773927032207,-319.20492,8.078e-05,2]
[408601441,1773927032230,-454.02947525,8.078e-05,2]
[408601442,1773927032241,-706.49,8.078e-05,2]
[408601443,1773927032252,-911.72705474,8.078e-05,2]
[408601444,1773927032265,-1217.13613072,8.078e-05,2]
[408601450,1773927038221,-500.0,8.077e-05,2]
[408601451,1773927038231,-500.0,8.077e-05,2]
[408601452,1773927038240,-500.0,8.077e-05,2]
[408601453,1773927038250,-500.0,8.077e-05,2]
[408601454,1773927038259,-359.33781248,8.077e-05,2]
[408601455,1773927038284,-140.66218752,8.077e-05,2]
[408601456,1773927038293,-328.4402707,8.077e-05,2]
[408601457,1773927038304,-171.5597293,8.077e-05,2]
[408601458,1773927038314,-500.0,8.077e-05,2]
[408601459,1773927038322,-500.0,8.077e-05,2]
[408601460,1773927038331,-195.29488351,8.077e-05,2]
[408601461,1773927038343,-304.70511649,8.077e-05,2]
[408601462,1773927038352,-500.0,8.077e-05,2]
[408601463,1773927038360,-500.0,8.077e-05,2]
[408601464,1773927038370,-500.0,8.077e-05,2]
[408601465,1773927038379,-500.0,8.077e-05,2]
[408601466,1773927038389,-500.0,8.077e-05,2]
[408601467,1773927038398,-500.0,8.077e-05,2]
[408601468,1773927038408,-500.0,8.077e-05,2]
[408601469,1773927038417,-500.0,8.077e-05,2]
[408601470,1773927038427,-500.0,8.077e-05,2]
[408601471,1773927038436,-500.0,8.077e-05,2]
[408601472,1773927038445,-500.0,8.077e-05,2]
[408601473,1773927038454,-500.0,8.077e-05,2]
[408601474,1773927038464,-500.0,8.077e-05,2]
[408601476,1773927038473,-500.0,8.077e-05,2]
[408601477,1773927038483,-500.0,8.077e-05,2]
[408601478,1773927038493,-584.22074371,8.077e-05,2]
[408601479,1773927038502,-500.0,8.077e-05,2]
[408601480,1773927038512,-500.0,8.077e-05,2]
[408601481,1773927038524,-500.0,8.077e-05,2]
[408601484,1773927038533,-500.0,8.077e-05,2]
[408601487,1773927038542,-500.0,8.077e-05,2]
[408601490,1773927038551,-500.0,8.077e-05,2]
[408601493,1773927038560,-500.0,8.077e-05,2]
[408601497,1773927038579,-500.0,8.077e-05,2]